fUST/lending_fUST_20241202
["ID","MTS","AMOUNT","RATE_DAILY","PERIOD"]
[343956619,1733142638509,-612.27597416,0.00027671,7]
[343956620,1733142638518,-151.0,0.00027671,7]
[343956621,1733142638528,-151.0,0.00027671,7]
[343956622,1733142638537,-500.0,0.00027671,7]
[343956623,1733142638547,-169.98000849,0.00027671,7]
[343956624,1733142638556,-500.0,0.00027671,7]
[343956625,1733142638565,-500.0,0.00027671,7]
[343956626,1733142638575,-551.14572434,0.00027671,7]
[343956627,1733142638584,-500.0,0.00027671,7]
[343956628,1733142638594,-500.0,0.00027671,7]
[343956629,1733142638603,-340.7825412,0.00027671,7]
[343956630,1733142638612,-637.25660933,0.00027671,7]
[343956631,1733142638622,-500.0,0.00027671,7]
[343956632,1733142638631,-500.0,0.00027671,7]
[343956633,1733142638641,-518.27043102,0.00027671,7]
[343956634,1733142638736,-240.807273,0.00027671,7]
[343956635,1733142638745,-240.807273,0.00027671,7]
[343956636,1733142638755,-500.0,0.00027671,7]
[343956637,1733142638767,-502.26649486,0.00027671,7]
[343956638,1733142638777,-500.0,0.00027671,7]
[343956639,1733142638787,-500.0,0.00027671,7]
[343956640,1733142638796,-500.0,0.00027671,7]
[343956641,1733142638806,-500.0,0.00027671,7]
[343956642,1733142638814,-500.0,0.00027671,7]
[343956643,1733142638827,-500.0,0.00027671,7]
[343956644,1733142638836,-500.0,0.00027671,7]
[343956645,1733142638845,-500.0,0.00027671,7]
[343956646,1733142638855,-500.0,0.00027671,7]
[343956647,1733142638864,-500.0,0.00027671,7]
[343956648,1733142638873,-500.0,0.00027671,7]
[343956649,1733142638882,-500.0,0.00027671,7]
[343956650,1733142638891,-500.0,0.00027671,7]
[343956651,1733142638900,-500.0,0.00027671,7]
[343956652,1733142638910,-500.0,0.00027671,7]
[343956653,1733142638920,-151.0,0.00027671,7]
[343956654,1733142638929,-500.0,0.00027671,7]
[343956655,1733142638938,-500.0,0.00027671,7]
[343956656,1733142638947,-500.0,0.00027671,7]
[343956657,1733142638957,-501.6309289,0.00027671,7]
[343956658,1733142638966,-500.0,0.00027671,7]
[343956659,1733142638975,-500.0,0.00027671,7]
[343956660,1733142638989,-500.0,0.00027671,7]
[343956661,1733142638999,-200.0,0.00027671,7]
[343956662,1733142639008,-500.0,0.00027671,7]
[343956663,1733142639017,-500.0,0.00027671,7]
[343956664,1733142639027,-500.0,0.00027671,7]
[343956665,1733142639036,-506.75738008,0.00027671,7]
[343956666,1733142639048,-151.0,0.00027671,7]
[343956667,1733142639057,-151.0,0.00027671,7]
[343956668,1733142639066,-363.73985967,0.00027671,7]
[343956669,1733142639076,-500.0,0.00027671,7]
[343956670,1733142639086,-507.67708465,0.00027671,7]
[343956671,1733142639095,-500.0,0.00027671,7]
[343956672,1733142639105,-500.0,0.00027671,7]
[343956673,1733142639115,-500.0,0.00027671,7]
[343956674,1733142639127,-500.0,0.00027671,7]
[343956675,1733142639137,-500.0,0.00027671,7]
[343956676,1733142639147,-500.0,0.00027671,7]
[343956677,1733142639156,-500.0,0.00027671,7]
[343956678,1733142639166,-500.0,0.00027671,7]
[343956679,1733142639186,-500.0,0.00027671,7]
[343956680,1733142639197,-643.33,0.00027671,7]
[343956681,1733142639208,-500.0,0.00027671,7]
[343956682,1733142639218,-500.0,0.00027671,7]
[343956683,1733142639228,-500.0,0.00027671,7]
[343956684,1733142639240,-151.0,0.00027671,7]
[343956685,1733142639250,-151.0,0.00027671,7]
[343956686,1733142639260,-500.0,0.00027671,7]
[343956687,1733142639270,-500.0,0.00027671,7]
[343956688,1733142639280,-500.0,0.00027671,7]
[343956689,1733142639291,-500.0,0.00027671,7]
[343956690,1733142639301,-175.986646,0.00027671,7]
[343956691,1733142639311,-175.986646,0.00027671,7]
[343956692,1733142639321,-500.0,0.00027671,7]
[343956694,1733142639333,-500.0,0.00027671,7]
[343956695,1733142639346,-175.986646,0.00027671,7]
[343956696,1733142639356,-175.986646,0.00027671,7]
[343956697,1733142639366,-500.0,0.00027671,7]
[343956698,1733142639376,-500.0,0.00027671,7]
[343956699,1733142639386,-500.0,0.00027671,7]
[343956700,1733142639395,-500.0,0.00027671,7]
[343956701,1733142639405,-500.0,0.00027671,7]
[343956702,1733142639414,-500.0,0.00027671,7]
[343956703,1733142639424,-500.0,0.00027671,7]
[343956704,1733142639434,-500.0,0.00027671,7]
[343956705,1733142639444,-500.0,0.00027671,7]
[343956706,1733142639454,-265.27,0.00027671,7]
[343956707,1733142639463,-234.68812796,0.00027671,7]
[343956708,1733142639473,-500.0,0.00027671,7]
[343956709,1733142639484,-500.0,0.00027671,7]
[343956710,1733142639493,-500.0,0.00027671,7]
[343956711,1733142639503,-256.20144104,0.00027671,7]
[343956712,1733142639512,-500.0,0.00027671,7]
[343956713,1733142639522,-500.0,0.00027671,7]
[343956715,1733142639531,-500.0,0.00027671,7]
[343956717,1733142639541,-500.0,0.00027671,7]
[343956718,1733142639550,-151.0,0.00027671,7]
[343956719,1733142639559,-151.0,0.00027671,7]
[343956720,1733142639568,-500.0,0.00027671,7]
[343956721,1733142639578,-500.0,0.00027671,7]
[343956722,1733142639587,-500.0,0.00027671,7]
[343956723,1733142639597,-500.0,0.00027671,7]
[343956724,1733142639607,-500.0,0.00027671,7]
[343956727,1733142639616,-500.0,0.00027671,7]
[343956729,1733142639625,-500.0,0.00027671,7]
[343956731,1733142639635,-542.05719922,0.00027671,7]
[343956733,1733142639645,-500.0,0.00027671,7]
[343956735,1733142639654,-500.0,0.00027671,7]
[343956736,1733142639664,-500.0,0.00027671,7]
[343956737,1733142639673,-400.85506073,0.00027671,7]
[343956738,1733142639683,-500.0,0.00027671,7]
[343956739,1733142639692,-1953.78,0.00027671,7]
[343956740,1733142639702,-500.0,0.00027671,7]
[343956741,1733142639712,-500.0,0.00027671,7]
[343956742,1733142639721,-171.8462511,0.00027671,7]
[343956743,1733142639733,-500.0,0.00027671,7]
[343956744,1733142639744,-500.0,0.00027671,7]
[343956745,1733142639754,-500.0,0.00027671,7]
[343956747,1733142639764,-500.0,0.00027671,7]
[343956749,1733142639776,-500.0,0.00027671,7]
[343956751,1733142639786,-500.0,0.00027671,7]
[343956753,1733142639797,-500.0,0.00027671,7]
[343956755,1733142639807,-500.0,0.00027671,7]
[343956756,1733142639817,-500.0,0.00027671,7]
[343956757,1733142639827,-284.61975227,0.00027671,7]
[343956758,1733142639838,-254.84025137,0.00027671,7]
[343956759,1733142639847,-500.0,0.00027671,7]
[343956760,1733142639857,-500.0,0.00027671,7]
[343956761,1733142639866,-500.0,0.00027671,7]
[343956762,1733142639876,-500.0,0.00027671,7]
[343956763,1733142639885,-500.0,0.00027671,7]
[343956764,1733142639894,-500.0,0.00027671,7]
[343956765,1733142639903,-500.0,0.00027671,7]
[343956766,1733142639913,-500.0,0.00027671,7]
[343956767,1733142639923,-279.48500626,0.00027671,7]
[343956768,1733142639932,-500.0,0.00027671,7]
[343956769,1733142639942,-500.0,0.00027671,7]
[343956770,1733142639951,-500.0,0.00027671,7]
[343956771,1733142639963,-500.0,0.00027671,7]
[343956772,1733142639973,-500.62042167,0.00027671,7]
[343956773,1733142639984,-216.44720712,0.00027671,7]
[343956774,1733142639993,-500.0,0.00027671,7]
[343956775,1733142640005,-500.0,0.00027671,7]
[343956776,1733142640014,-500.0,0.00027671,7]
[343956777,1733142640023,-500.0,0.00027671,7]
[343956778,1733142640033,-500.0,0.00027671,7]
[343956779,1733142640043,-500.0,0.00027671,7]
[343956780,1733142640056,-7636.25,0.00027671,7]
[343956782,1733142640066,-500.0,0.00027671,7]
[343956784,1733142640075,-500.0,0.00027671,7]
[343956786,1733142640083,-500.0,0.00027671,7]
[343956788,1733142640092,-501.8012392,0.00027671,7]
[343956790,1733142640102,-504.22505832,0.00027671,7]
[343956791,1733142640111,-508.10916355,0.00027671,7]
[343956793,1733142640122,-507.66392672,0.00027671,7]
[343956795,1733142640131,-518.57949144,0.00027671,7]
[343956797,1733142640141,-500.0,0.00027671,7]
[343956798,1733142640151,-431.77019825,0.00027671,7]
[343956799,1733142640160,-380.07703125,0.00027671,7]
[343956800,1733142640169,-507.90590518,0.00027671,7]
[343956801,1733142640179,-500.0,0.00027671,7]
[343956802,1733142640188,-151.0,0.00027671,7]
[343956803,1733142640197,-938.05,0.00027671,7]
[343956804,1733142640206,-503.68774969,0.00027671,7]
[343956805,1733142640216,-500.0,0.00027671,7]
[343956806,1733142640225,-500.0,0.00027671,7]
[343956807,1733142640238,-500.0,0.00027671,7]
[343956808,1733142640248,-500.0,0.00027671,7]
[343956809,1733142640258,-500.0,0.00027671,7]
[343956810,1733142640267,-406.65653021,0.00027671,7]
[343956811,1733142640276,-500.0,0.00027671,7]
[343956812,1733142640286,-500.0,0.00027671,7]
[343956813,1733142640295,-500.0,0.00027671,7]
[343956814,1733142640304,-500.0,0.00027671,7]
[343956815,1733142640313,-500.0,0.00027671,7]
[343956816,1733142640323,-655.85,0.00027671,7]
[343956817,1733142640332,-500.0,0.00027671,7]
[343956818,1733142640342,-500.0,0.00027671,7]
[343956819,1733142640352,-500.0,0.00027671,7]
[343956820,1733142640361,-540.6,0.00027671,7]
[343956821,1733142640371,-500.0,0.00027671,7]
[343956822,1733142640381,-500.0,0.00027671,7]
[343956823,1733142640390,-500.0,0.00027671,7]
[343956824,1733142640399,-500.0,0.00027671,7]
[343956825,1733142640410,-500.0,0.00027671,7]
[343956826,1733142640420,-503.80569746,0.00027671,7]
[343956827,1733142640429,-214.78602884,0.00027671,7]
[343956828,1733142640438,-500.0,0.00027671,7]
[343956829,1733142640448,-500.95226348,0.00027671,7]
[343956830,1733142640457,-500.0,0.00027671,7]
[343956831,1733142640467,-500.0,0.00027671,7]
[343956832,1733142640476,-500.0,0.00027671,7]
[343956833,1733142640487,-500.0,0.00027671,7]
[343956834,1733142640496,-424.67805847,0.00027671,7]
[343956835,1733142640506,-500.0,0.00027671,2]
[343956836,1733142640515,-500.0,0.00027671,7]
[343956837,1733142640524,-646.97460245,0.00027673,2]
[343956838,1733142640534,-500.0,0.00027673,5]
[343956839,1733142640543,-420.1966673,0.00027673,5]
[343956840,1733142640552,-500.0,0.00027673,5]
[343956841,1733142640562,-507.08906592,0.00027673,5]
[343956842,1733142640571,-1076.39,0.000277,2]
[343956843,1733142640580,-151.0,0.00027727,7]
[343956844,1733142640589,-151.0,0.00027781,6]
[343956845,1733142640598,-12481.82743449,0.000278,3]
[343956846,1733142640922,-500.0,0.00027395,2]
[343956848,1733142640931,-500.0,0.00027395,2]
[343956850,1733142640940,-500.0,0.00027395,2]
[343956852,1733142640949,-236.00705319,0.00027395,2]
[343956853,1733142640958,-500.0,0.00027395,2]
[343956854,1733142640968,-500.0,0.00027395,2]
[343956860,1733142641071,-500.0,0.00027395,2]
[343956861,1733142641083,-441.72871522,0.00027395,2]
[343956862,1733142641093,-500.0,0.00027395,2]
[343956863,1733142641104,-500.0,0.00027395,2]
[343956864,1733142641113,-500.0,0.00027395,2]
[343956865,1733142641124,-500.0,0.00027395,2]
[343956867,1733142641134,-500.0,0.00027395,2]
[343956868,1733142641143,-583.24732573,0.00027395,2]
[343956869,1733142641152,-500.0,0.00027395,2]
[343956870,1733142641162,-386.47589916,0.00027395,2]
[343956871,1733142641171,-382.72954055,0.00027395,2]
[343956872,1733142641181,-497.44605787,0.000278,3]
[343956887,1733142642976,-650.82,0.00027387,10]
[343956888,1733142642990,-500.0,0.00027397,7]
[343956889,1733142642999,-3380.29508065,0.000278,3]
[343956890,1733142643012,-5377.0256319,0.000278,3]
[343956891,1733142643023,-13690.70590067,0.000278,3]
[343956892,1733142643033,-300.181074,0.000279,7]
[343956893,1733142643044,-198.54,0.000279,31]
[343956894,1733142643057,-198.54,0.000279,31]
[343956895,1733142643067,-198.54,0.000279,31]
[343956896,1733142643076,-198.54,0.000279,31]
[343956897,1733142643086,-198.54,0.000279,31]
[343956898,1733142643096,-198.54,0.000279,31]
[343956899,1733142643105,-198.54,0.000279,31]
[343956900,1733142643114,-198.54,0.000279,31]
[343956901,1733142643126,-198.54,0.000279,31]
[343956902,1733142643135,-198.54,0.000279,31]
[343956903,1733142643144,-198.54,0.000279,31]
[343956904,1733142643154,-198.54,0.000279,31]
[343956905,1733142643163,-540.08571964,0.00027932,2]
[343956906,1733142643174,-151.0,0.00027945,7]
[343956907,1733142643183,-514.98818935,0.00027945,7]
[343956908,1733142643193,-500.0,0.00027945,7]
[343956909,1733142643202,-240.807273,0.00027945,7]
[343956910,1733142643212,-240.807273,0.00027945,7]
[343956911,1733142643221,-500.0,0.00027945,7]
[343956912,1733142643231,-500.0,0.00027945,7]
[343956913,1733142643244,-276.19942487,0.00027945,7]
[343956914,1733142643254,-500.0,0.00027945,7]
[343956915,1733142643264,-500.0,0.00027945,7]
[343956916,1733142643274,-603.42420351,0.00027945,7]
[343956917,1733142643284,-500.0,0.00027945,7]
[343956918,1733142643294,-500.0,0.00027945,7]
[343956919,1733142643304,-500.0,0.00027945,7]
[343956920,1733142643313,-546.2624374,0.00027945,7]
[343956921,1733142643324,-500.0,0.00027945,7]
[343956922,1733142643334,-500.0,0.00027945,7]
[343956923,1733142643343,-500.0,0.00027945,7]
[343956924,1733142643353,-500.0,0.00027945,7]
[343956925,1733142643363,-500.0,0.00027945,7]
[343956926,1733142643372,-151.0,0.00027945,7]
[343956927,1733142643382,-500.0,0.00027945,7]
[343956928,1733142643391,-506.42,0.00027945,7]
[343956929,1733142643401,-500.0,0.00027945,7]
[343956930,1733142643410,-500.0,0.00027945,7]
[343956931,1733142643420,-265.27,0.00027945,7]
[343956932,1733142643428,-500.0,0.00027945,7]
[343956933,1733142643437,-500.0,0.00027945,7]
[343956934,1733142643447,-500.0,0.00027945,7]
[343956935,1733142643456,-500.0,0.00027945,7]
[343956936,1733142643466,-500.0,0.00027945,7]
[343956938,1733142643476,-500.0,0.00027945,7]
[343956940,1733142643488,-500.0,0.00027945,7]
[343956942,1733142643497,-500.0,0.00027945,7]
[343956944,1733142643507,-500.0,0.00027945,7]
[343956945,1733142643516,-500.0,0.00027945,7]
[343956946,1733142643526,-1953.78,0.00027945,7]
[343956947,1733142643535,-500.0,0.00027945,7]
[343956948,1733142643544,-163.24,0.00027945,7]
[343956949,1733142643554,-500.0,0.00027945,7]
[343956950,1733142643563,-500.0,0.00027945,7]
[343956951,1733142643573,-500.0,0.00027945,7]
[343956952,1733142643583,-510.43731056,0.00027945,7]
[343956953,1733142643592,-500.0,0.00027945,7]
[343956954,1733142643602,-501.8,0.00027945,7]
[343956955,1733142643613,-500.0,0.00027945,7]
[343956956,1733142643622,-500.0,0.00027945,7]
[343956957,1733142643632,-500.0,0.00027945,7]
[343956958,1733142643641,-390.48,0.00027945,7]
[343956959,1733142643651,-7448.68442218,0.00027945,7]
[343956996,1733142717333,3017.13,0.00026,60]
[343956999,1733142803949,166.971662,0.00013973,2]
[343957010,1733143454135,166.949988,0.00013973,2]
[343957043,1733143645098,-471.97953731,0.00024509,2]
[343957044,1733143645119,-5000.0,0.00024757,2]
[343957045,1733143645138,-425.765934,0.00024963,2]
[343957046,1733143645159,-250.0,0.00025406,2]
[343957047,1733143645178,-300.0,0.00025437,2]
[343957048,1733143645198,-300.0,0.00025439,2]
[343957049,1733143645219,-5746.91439738,0.00025439,2]
[343957094,1733143832058,-172.738419,0.0002498,2]
[343957096,1733143832067,-327.261581,0.00025185,2]
[343957098,1733143832079,-927.6322238,0.00025185,2]
[343957100,1733143832088,-300.0,0.00025436,2]
[343957102,1733143832097,-300.0,0.00025436,2]
[343957104,1733143832105,-16761.0,0.00025436,2]
[343957106,1733143832114,-499.49400801,0.00025439,2]
[343957108,1733143832124,-24900.0,0.0002544,2]
[343957110,1733143832133,-347.2486379,0.00025805,2]
[343957112,1733143832142,-169.506654,0.00026822,2]
[343957114,1733143832152,-1281.51414047,0.00026848,5]
[343957116,1733143832161,-409.06762362,0.00026895,2]
[343957118,1733143832172,-409.06762361,0.00026898,2]
[343957121,1733143832182,-576.56029364,0.00026898,2]
[343957124,1733143832191,-2297.38171782,0.000269,3]
[343957127,1733143832200,-409.06762361,0.00026902,2]
[343957130,1733143832210,-409.06762361,0.00026905,2]
[343957133,1733143832219,-409.06762361,0.00026908,2]
[343957135,1733143832228,-217.4841053,0.00026973,2]
[343957137,1733143832237,-261.76153932,0.00026973,2]
[343957139,1733143832247,-500.0,0.00026973,2]
[343957141,1733143832256,-500.0,0.00026973,2]
[343957143,1733143832265,-367.05169184,0.00026973,2]
[343957145,1733143832274,-500.0,0.00026973,2]
[343957147,1733143832283,-620.07307757,0.00026973,2]
[343957149,1733143832292,-542.35,0.00026984,10]
[343957151,1733143832301,-214.34544626,0.00026999,2]
[343957153,1733143832310,-500.0,0.00026999,2]
[343957155,1733143832319,-191.63685367,0.00026999,2]
[343957156,1733143832328,-202.50395022,0.00026999,2]
[343957158,1733143832338,-298.73184358,0.00026999,2]
[343957161,1733143832348,-320.18847279,0.00026999,2]
[343957162,1733143832357,-71822.3320611,0.00027,2]
[343957165,1733143832367,-531682.31216913,0.00027,5]
[343957166,1733143832376,-169.506654,0.00027108,2]
[343957169,1733143832386,-197.00079036,0.00027373,2]
[343957170,1733143832395,-502.02133247,0.00027373,2]
[343957173,1733143832404,-607.93818175,0.00027373,2]
[343957174,1733143832413,-501.17966661,0.00027373,2]
[343957176,1733143832425,-202.45948891,0.00027373,2]
[343957179,1733143832439,-500.0,0.00027373,2]
[343957181,1733143832448,-500.0,0.00027373,2]
[343957182,1733143832458,-500.0,0.00027373,2]
[343957184,1733143832467,-163.53844793,0.00027373,2]
[343957186,1733143832476,-169.506654,0.00027394,2]
[343957189,1733143832487,-151.0,0.00027397,7]
[343957191,1733143832496,-151.0,0.00027397,7]
[343957192,1733143832505,-151.0,0.00027397,7]
[343957194,1733143832514,-151.0,0.00027397,7]
[343957196,1733143832523,-500.0,0.00027397,2]
[343957198,1733143832533,-500.0,0.00027397,7]
[343957200,1733143832542,-500.0,0.00027397,7]
[343957202,1733143832551,-500.0,0.00027397,7]
[343957204,1733143832560,-500.0,0.00027397,7]
[343957206,1733143832569,-500.0,0.00027397,7]
[343957208,1733143832578,-500.0,0.00027397,7]
[343957210,1733143832587,-500.0,0.00027397,7]
[343957212,1733143832598,-500.0,0.00027397,7]
[343957214,1733143832607,-500.0,0.00027397,7]
[343957216,1733143832617,-500.0,0.00027397,7]
[343957218,1733143832626,-501.12443308,0.00027397,7]
[343957220,1733143832635,-500.0,0.00027397,7]
[343957222,1733143832644,-500.0,0.00027397,7]
[343957224,1733143832653,-542.82267848,0.00027397,7]
[343957226,1733143832662,-500.0,0.00027397,7]
[343957228,1733143832678,-500.0,0.00027397,7]
[343957231,1733143832687,-281.53079102,0.00027397,7]
[343957232,1733143832698,-500.0,0.00027397,7]
[343957233,1733143832707,-500.0,0.00027397,7]
[343957234,1733143832716,-500.0,0.00027397,7]
[343957235,1733143832725,-510.006581,0.00027397,7]
[343957236,1733143832734,-500.0,0.00027397,7]
[343957237,1733143832743,-500.0,0.00027397,7]
[343957238,1733143832752,-500.0,0.00027397,7]
[343957239,1733143832762,-500.0,0.00027397,7]
[343957240,1733143832771,-500.0,0.00027397,7]
[343957241,1733143832782,-500.0,0.00027397,7]
[343957242,1733143832791,-500.0,0.00027397,7]
[343957243,1733143832799,-500.0,0.00027397,7]
[343957244,1733143832809,-500.0,0.00027397,7]
[343957245,1733143832819,-500.0,0.00027397,7]
[343957246,1733143832828,-500.0,0.00027397,7]
[343957247,1733143832837,-500.0,0.00027397,7]
[343957248,1733143832846,-500.0,0.00027397,7]
[343957249,1733143832855,-500.0,0.00027397,2]
[343957250,1733143832864,-646.4565013,0.00027397,7]
[343957251,1733143832873,-500.0,0.00027397,7]
[343957252,1733143832886,-500.0,0.00027397,7]
[343957253,1733143832895,-500.0,0.00027397,7]
[343957254,1733143832904,-500.0,0.00027397,7]
[343957255,1733143832914,-500.0,0.00027397,7]
[343957256,1733143832925,-500.0,0.00027397,7]
[343957257,1733143832934,-500.0,0.00027397,7]
[343957258,1733143832942,-500.0,0.00027397,7]
[343957259,1733143832951,-514.1693974,0.00027397,7]
[343957260,1733143832961,-500.0,0.00027397,7]
[343957261,1733143832971,-500.0,0.00027397,7]
[343957262,1733143832980,-454.77043245,0.00027397,7]
[343957263,1733143832989,-500.0,0.00027397,7]
[343957264,1733143832998,-500.0,0.00027397,7]
[343957265,1733143833008,-211.9399534,0.00027397,2]
[343957266,1733143833017,-500.0,0.00027397,7]
[343957267,1733143833028,-500.0,0.00027397,7]
[343957269,1733143833038,-500.0,0.00027397,7]
[343957270,1733143833048,-500.0,0.00027397,7]
[343957271,1733143833058,-500.0,0.00027397,7]
[343957272,1733143833068,-500.0,0.00027397,7]
[343957273,1733143833078,-500.0,0.00027397,7]
[343957274,1733143833089,-508.98976224,0.00027397,7]
[343957276,1733143833099,-500.0,0.00027397,7]
[343957278,1733143833109,-500.0,0.00027397,7]
[343957280,1733143833119,-500.0,0.00027397,7]
[343957281,1733143833130,-500.0,0.00027397,7]
[343957282,1733143833140,-500.0,0.00027397,7]
[343957283,1733143833151,-500.0,0.00027397,7]
[343957284,1733143833161,-500.0,0.00027397,7]
[343957285,1733143833173,-499.38237768,0.00027397,7]
[343957286,1733143833183,-500.0,0.00027397,7]
[343957287,1733143833193,-500.0,0.00027397,7]
[343957288,1733143833203,-500.0,0.00027397,7]
[343957289,1733143833213,-400.06688696,0.00027397,7]
[343957290,1733143833223,-500.0,0.00027397,7]
[343957291,1733143833233,-500.0,0.00027397,7]
[343957292,1733143833244,-575.85533055,0.00027397,7]
[343957293,1733143833254,-500.0,0.00027397,7]
[343957294,1733143833266,-500.0,0.00027397,7]
[343957295,1733143833275,-511.08603335,0.00027397,7]
[343957296,1733143833286,-500.0,0.00027397,7]
[343957297,1733143833297,-500.0,0.00027397,7]
[343957298,1733143833308,-500.0,0.00027397,7]
[343957299,1733143833318,-540.21113922,0.00027397,7]
[343957300,1733143833328,-500.0,0.00027397,7]
[343957301,1733143833337,-533.8024429,0.00027397,7]
[343957302,1733143833347,-586.50733891,0.00027397,7]
[343957303,1733143833356,-500.0,0.00027397,7]
[343957304,1733143833366,-500.0,0.00027397,7]
[343957305,1733143833376,-162.45627297,0.00027397,7]
[343957306,1733143833480,-500.0,0.00027397,7]
[343957307,1733143833490,-500.0,0.00027397,7]
[343957308,1733143833500,-500.0,0.00027397,7]
[343957309,1733143833511,-500.0,0.00027397,7]
[343957310,1733143833522,-500.0,0.00027397,7]
[343957311,1733143833532,-500.0,0.00027397,7]
[343957312,1733143833543,-500.0,0.00027397,7]
[343957313,1733143833553,-518.78527956,0.00027397,7]
[343957314,1733143833563,-500.0,0.00027397,7]
[343957315,1733143833574,-500.0,0.00027397,7]
[343957316,1733143833584,-500.0,0.00027397,7]
[343957317,1733143833595,-500.0,0.00027397,7]
[343957318,1733143833605,-500.0,0.00027397,7]
[343957319,1733143833616,-527.50007082,0.00027397,7]
[343957320,1733143833626,-500.0,0.00027397,7]
[343957321,1733143833637,-500.0,0.00027397,7]
[343957322,1733143833647,-868.9292748,0.00027397,5]
[343957323,1733143833656,-500.0,0.00027397,7]
[343957324,1733143833666,-500.0,0.00027397,7]
[343957325,1733143833682,-388.13153747,0.00027397,7]
[343957326,1733143833692,-417.61719212,0.00027397,7]
[343957327,1733143833702,-500.0,0.00027397,7]
[343957328,1733143833711,-500.0,0.00027397,7]
[343957329,1733143833721,-500.0,0.00027397,7]
[343957330,1733143833731,-500.0,0.00027397,7]
[343957331,1733143833741,-505.4984902,0.00027397,7]
[343957332,1733143833750,-500.0,0.00027397,7]
[343957333,1733143833760,-500.0,0.00027397,7]
[343957334,1733143833770,-151.0,0.00027397,7]
[343957335,1733143833780,-500.0,0.00027397,7]
[343957336,1733143833789,-500.0,0.00027397,2]
[343957337,1733143833799,-500.0,0.00027397,7]
[343957338,1733143833808,-232.11,0.00027397,7]
[343957339,1733143833817,-500.0,0.00027397,7]
[343957340,1733143833826,-500.0,0.00027397,7]
[343957341,1733143833835,-500.0,0.00027397,7]
[343957342,1733143833845,-504.73262058,0.00027397,7]
[343957343,1733143833855,-500.0,0.00027397,7]
[343957344,1733143833865,-500.0,0.00027397,7]
[343957345,1733143833875,-500.0,0.00027397,7]
[343957346,1733143833885,-500.0,0.00027397,7]
[343957347,1733143833895,-500.0,0.00027397,7]
[343957348,1733143833905,-500.0,0.00027397,7]
[343957349,1733143833914,-444.80731784,0.00027397,7]
[343957350,1733143833927,-576.18675786,0.00027397,7]
[343957351,1733143833937,-500.0,0.00027397,7]
[343957352,1733143833946,-500.0,0.00027397,7]
[343957353,1733143833956,-500.0,0.00027397,7]
[343957354,1733143833965,-500.0,0.00027397,7]
[343957355,1733143833975,-500.0,0.00027397,7]
[343957357,1733143833985,-500.0,0.00027397,7]
[343957358,1733143834000,-500.0,0.00027397,7]
[343957359,1733143834009,-500.0,0.00027397,7]
[343957360,1733143834019,-562.68,0.00027397,7]
[343957361,1733143834027,-562.68,0.00027397,7]
[343957363,1733143834036,-562.68,0.00027397,7]
[343957365,1733143834045,-562.68,0.00027397,7]
[343957367,1733143834055,-562.68,0.00027397,7]
[343957368,1733143834063,-562.68,0.00027397,7]
[343957370,1733143834074,-500.0,0.00027397,7]
[343957371,1733143834083,-562.68,0.00027397,7]